[Event "FIN-ch Seniors 2019"]
[Site "Helsinki"]
[Date "2019.06.12"]
[Round "2.3"]
[White "Leukkunen, Raimo"]
[Black "Aakio, Seppo"]
[Result "1/2-1/2"]
[ECO "B07"]
[WhiteElo "1876"]
[BlackElo "2051"]
[Annotator "NA"]
[PlyCount "82"]
[EventDate "2019.06.10"]
[EventType "swiss"]
[EventCountry "FIN"]
[SourceTitle "playchess.com"]
[Source "ChessBase"]
[SourceQuality "1"]
[TimeControl "40/5400+30:1800+30"]

1. e4 {[%emt 0:00:00]} d6 {[%emt 0:00:00]} 2. d4 {[%emt 0:00:26]} Nf6 {[%emt 0:
01:13]} 3. Nc3 {[%emt 0:00:19]} e5 {[%emt 0:00:26]} 4. dxe5 {[%emt 0:00:50]}
dxe5 {[%emt 0:00:07]} 5. Qxd8+ {[%emt 0:00:18]} Kxd8 {[%emt 0:00:02]} 6. Bg5 {
[%emt 0:00:21]} Be6 {[%emt 0:00:42]} 7. O-O-O+ {[%emt 0:00:31]} Nbd7 {[%emt 0:
07:31]} 8. Nf3 {[%emt 0:01:08]} Bd6 {[%emt 0:10:53]} 9. Bb5 {[%emt 0:05:08]}
Kc8 {[%emt 0:00:46]} 10. Rd2 {[%emt 0:01:17]} Nc5 {[%emt 0:05:08]} 11. Bxf6 {
[%emt 0:03:31]} gxf6 {[%emt 0:00:01]} 12. Rhd1 {[%emt 0:07:02]} a6 {[%emt 0:01:
00]} 13. Be2 {[%emt 0:03:37]} b5 {[%emt 0:00:36]} 14. a3 {[%emt 0:01:43]} Kb7 {
[%emt 0:04:57]} 15. Nh4 {[%emt 0:05:35]} Ka7 {[%emt 0:08:49]} 16. Bf3 {[%emt 0:
04:45]} Rab8 {[%emt 0:05:51]} 17. Nf5 {[%emt 0:01:58]} Bxf5 {[%emt 0:04:44]}
18. exf5 {[%emt 0:00:29]} e4 {[%emt 0:00:24]} 19. Rxd6 {[%emt 0:11:04]} cxd6 {
[%emt 0:00:01]} 20. Bxe4 {[%emt 0:00:39]} b4 {[%emt 0:01:42]} 21. axb4 {
[%emt 0:01:52]} Rxb4 {[%emt 0:00:01]} 22. f3 {[%emt 0:02:14]} Rhb8 {[%emt 0:07:
54]} 23. b3 {[%emt 0:00:49]} Rc8 {[%emt 0:09:50]} 24. Kb2 {[%emt 0:01:44]} Nxe4
{[%emt 0:07:45]} 25. Nxe4 {[%emt 0:01:58]} Rb6 {[%emt 0:04:31]} 26. Nxf6 {
[%emt 0:09:55]} Rbc6 {[%emt 0:02:40]} 27. c4 {[%emt 0:01:39]} Rb6 {[%emt 0:00:
44]} 28. Kc3 {[%emt 0:00:15]} Rcb8 {[%emt 0:01:12]} 29. Rb1 {[%emt 0:00:31]}
R6b7 {[%emt 0:00:40]} 30. Nd5 {[%emt 0:00:58]} Re8 {[%emt 0:00:34]} 31. Kd3 {
[%emt 0:01:42]} Rbb8 {[%emt 0:02:05]} 32. g4 {[%emt 0:03:19]} h6 {[%emt 0:01:
20]} 33. h4 {[%emt 0:00:11]} Rb7 {[%emt 0:06:50]} 34. b4 {[%emt 0:02:47]} Rbb8
{[%emt 0:00:14]} 35. Ra1 {[%emt 0:06:02]} Kb7 {[%emt 0:00:11]} 36. b5 {[%emt 0:
00:30]} axb5 {[%emt 0:01:09]} 37. cxb5 {[%emt 0:00:10]} Ra8 {[%emt 0:02:21]}
38. Rc1 {[%emt 0:02:44]} Ra3+ {[%emt 0:00:58]} 39. Rc3 {[%emt 0:01:50]} Rxc3+ {
[%emt 0:00:19]} 40. Kxc3 {[%emt 0:00:08]} Re1 {[%emt 0:01:53]} 41. Kd4 {
[%emt 0:30:39]} Rd1+ {[%emt 0:31:40]} 1/2-1/2

[Event "FIN-ch Seniors 2019"]
[Site "Helsinki"]
[Date "2019.06.12"]
[Round "2.4"]
[White "Terasalo, Kari"]
[Black "Visti, Heikki"]
[Result "1/2-1/2"]
[ECO "B27"]
[WhiteElo "1780"]
[BlackElo "2000"]
[Annotator "NA"]
[PlyCount "43"]
[EventDate "2019.06.10"]
[EventType "swiss"]
[EventCountry "FIN"]
[SourceTitle "playchess.com"]
[Source "ChessBase"]
[SourceQuality "1"]
[TimeControl "40/5400+30:1800+30"]

1. e4 {[%emt 1:30:30]} g6 {[%emt 1:30:30]} 2. Nf3 {[%emt 0:00:30]} Bg7 {
[%emt 0:00:30]} 3. c3 {[%emt 0:00:30]} c5 {[%emt 0:00:30]} 4. Bc4 {[%emt 0:00:
30]} Nc6 {[%emt 0:00:30]} 5. O-O {[%emt 0:00:30]} e6 {[%emt 0:00:30]} 6. d4 {
[%emt 0:00:30]} d5 {[%emt 0:00:30]} 7. exd5 {[%emt 0:00:30]} exd5 {[%emt 0:00:
30]} 8. Re1+ {[%emt 0:00:30]} Nge7 {[%emt 0:00:30]} 9. Bb5 {[%emt 0:00:30]}
cxd4 {[%emt 0:00:30]} 10. Nxd4 {[%emt 0:00:30]} O-O {[%emt 0:00:30]} 11. Bg5 {
[%emt 0:00:30]} f6 {[%emt 0:00:30]} 12. Be3 {[%emt 0:00:30]} Ne5 {[%emt 0:00:
30]} 13. h3 {[%emt 0:00:30]} a6 {[%emt 0:00:30]} 14. Ba4 {[%emt 0:00:30]} Nf5 {
[%emt 0:00:30]} 15. Nxf5 {[%emt 0:00:30]} Bxf5 {[%emt 0:00:30]} 16. Bc5 {
[%emt 0:00:30]} Rf7 {[%emt 0:00:30]} 17. Bd4 {[%emt 0:00:30]} Qd6 {[%emt 0:00:
30]} 18. Bb3 {[%emt 0:00:30]} Rd8 {[%emt 0:00:30]} 19. Bc2 {[%emt 0:00:30]}
Bxc2 {[%emt 0:00:30]} 20. Qxc2 {[%emt 0:00:30]} Re7 {[%emt 0:00:30]} 21. Nd2 {
[%emt 0:00:30]} Rde8 {[%emt 0:00:30]} 22. Be3 {[%emt 0:00:30]} 1/2-1/2

[Event "FIN-ch Seniors 2019"]
[Site "Helsinki"]
[Date "2019.06.12"]
[Round "2.5"]
[White "Nyrhinen, Harri"]
[Black "Sihvonen, Tero"]
[Result "1/2-1/2"]
[ECO "B22"]
[WhiteElo "2001"]
[BlackElo "1983"]
[Annotator "NA"]
[PlyCount "78"]
[EventDate "2019.06.10"]
[EventType "swiss"]
[EventCountry "FIN"]
[SourceTitle "playchess.com"]
[Source "ChessBase"]
[SourceQuality "1"]
[TimeControl "40/5400+30:1800+30"]

1. e4 {[%emt 0:00:00]} c5 {[%emt 0:00:15]} 2. c3 {[%emt 0:00:00]} d5 {[%emt 0:
00:49]} 3. exd5 {[%emt 0:00:04]} Qxd5 {[%emt 0:00:24]} 4. d4 {[%emt 0:00:09]}
e5 {[%emt 0:01:54]} 5. Be3 {[%emt 0:12:00]} Nc6 {[%emt 0:10:53]} 6. c4 {
[%emt 0:15:59]} Qd8 {[%emt 0:00:13]} 7. d5 {[%emt 0:00:24]} Nd4 {[%emt 0:00:12]
} 8. Nc3 {[%emt 0:05:19]} g6 {[%emt 0:09:21]} 9. Qd2 {[%emt 0:04:54]} Bg7 {
[%emt 0:06:44]} 10. f4 {[%emt 0:10:01]} exf4 {[%emt 0:24:34]} 11. Bxf4 {
[%emt 0:04:54]} Ne7 {[%emt 0:01:21]} 12. Bd3 {[%emt 0:02:42]} O-O {[%emt 0:02:
07]} 13. Nge2 {[%emt 0:03:03]} Nef5 {[%emt 0:07:20]} 14. O-O {[%emt 0:03:58]}
b6 {[%emt 0:06:16]} 15. Ng3 {[%emt 0:05:01]} Nxg3 {[%emt 0:05:58]} 16. Bxg3 {
[%emt 0:01:59]} f5 {[%emt 0:00:23]} 17. Bf4 {[%emt 0:01:24]} Re8 {[%emt 0:00:
29]} 18. Rae1 {[%emt 0:00:47]} Bd7 {[%emt 0:00:25]} 19. Rxe8+ {[%emt 0:01:39]}
Bxe8 {[%emt 0:02:00]} 20. Re1 {[%emt 0:00:54]} Bf7 {[%emt 0:01:48]} 21. Be5 {
[%emt 0:07:24]} Qd7 {[%emt 0:00:59]} 22. Bxg7 {[%emt 0:01:05]} Kxg7 {[%emt 0:
00:12]} 23. Ne2 {[%emt 0:01:30]} Nxe2+ {[%emt 0:07:12]} 24. Rxe2 {[%emt 0:00:
18]} Re8 {[%emt 0:00:15]} 25. Rxe8 {[%emt 0:03:05]} Bxe8 {[%emt 0:02:06]} 26.
h3 {[%emt 0:02:58]} Qd6 {[%emt 0:00:39]} 27. Qe3 {[%emt 0:01:22]} Bd7 {[%emt 0:
00:35]} 28. Kf2 {[%emt 0:03:00]} Qf6 {[%emt 0:03:08]} 29. Qd2 {[%emt 0:02:47]}
g5 {[%emt 0:00:24]} 30. Qc3 {[%emt 0:01:17]} Qxc3 {[%emt 0:01:04]} 31. bxc3 {
[%emt 0:00:02]} Kf6 {[%emt 0:00:30]} 32. Kf3 {[%emt 0:00:21]} h5 {[%emt 0:00:
29]} 33. g3 {[%emt 0:01:49]} Ke5 {[%emt 0:00:29]} 34. h4 {[%emt 0:01:30]} g4+ {
[%emt 0:01:37]} 35. Ke3 {[%emt 0:00:41]} a6 {[%emt 0:01:32]} 36. Be2 {[%emt 0:
00:41]} b5 {[%emt 0:03:23]} 37. cxb5 axb5 {[%emt 0:00:30]} 38. c4 {[%emt 0:03:
59]} bxc4 {[%emt 0:00:30]} 39. Bxc4 {[%emt 0:00:00]} Bc8 {[%emt 0:00:00]}
1/2-1/2

[Event "FIN-ch Seniors 2019"]
[Site "Helsinki"]
[Date "2019.06.12"]
[Round "2.6"]
[White "Koskinen, Veikko"]
[Black "Gronroos, Matti"]
[Result "1-0"]
[ECO "A03"]
[WhiteElo "1866"]
[BlackElo "1931"]
[Annotator "NA"]
[PlyCount "73"]
[EventDate "2019.06.10"]
[EventType "swiss"]
[EventCountry "FIN"]
[SourceTitle "playchess.com"]
[Source "ChessBase"]
[SourceQuality "1"]
[TimeControl "40/5400+30:1800+30"]

1. f4 {[%emt 1:30:30]} Nf6 {[%emt 1:30:30]} 2. Nf3 {[%emt 0:00:30]} g6 {
[%emt 0:00:30]} 3. g3 {[%emt 0:00:30]} Bg7 {[%emt 0:00:30]} 4. Bg2 {[%emt 0:00:
30]} O-O {[%emt 0:00:30]} 5. O-O {[%emt 0:00:30]} c5 {[%emt 0:00:30]} 6. d3 {
[%emt 0:00:30]} d5 {[%emt 0:00:30]} 7. c3 {[%emt 0:00:30]} Nc6 {[%emt 0:00:30]}
8. Qc2 {[%emt 0:00:30]} Qb6 {[%emt 0:00:30]} 9. Kh1 {[%emt 0:00:30]} d4 {
[%emt 0:00:30]} 10. e4 {[%emt 0:00:30]} dxe3 {[%emt 0:00:30]} 11. Bxe3 {
[%emt 0:00:30]} Nd5 {[%emt 0:00:30]} 12. Bg1 {[%emt 0:00:30]} Nd8 {[%emt 0:00:
30]} 13. Nbd2 {[%emt 0:00:30]} Qc7 {[%emt 0:00:30]} 14. Rae1 {[%emt 0:00:30]}
e6 {[%emt 0:00:30]} 15. a3 {[%emt 0:00:30]} b6 {[%emt 0:00:30]} 16. Ne5 {
[%emt 0:00:30]} Bb7 {[%emt 0:00:30]} 17. Ne4 {[%emt 0:00:30]} Nf6 {[%emt 0:00:
30]} 18. Nc4 {[%emt 0:00:30]} Bd5 {[%emt 0:00:30]} 19. Ne3 {[%emt 0:00:30]} Bc6
{[%emt 0:00:30]} 20. h3 {[%emt 0:00:30]} Rc8 {[%emt 0:00:30]} 21. g4 {[%emt 0:
00:30]} Nd5 {[%emt 0:00:30]} 22. Bh2 {[%emt 0:00:30]} Nxe3 {[%emt 0:00:30]} 23.
Rxe3 {[%emt 0:00:30]} Bd5 {[%emt 0:00:30]} 24. f5 {[%emt 0:00:30]} Qd7 {
[%emt 0:00:30]} 25. fxg6 {[%emt 0:00:30]} hxg6 {[%emt 0:00:30]} 26. g5 {
[%emt 0:00:30]} Nb7 {[%emt 0:00:30]} 27. Qf2 {[%emt 0:00:30]} Bxe4 {[%emt 0:00:
30]} 28. Bxe4 {[%emt 0:00:30]} Rcd8 {[%emt 0:00:30]} 29. h4 {[%emt 0:00:30]}
Nd6 {[%emt 0:00:30]} 30. Bxd6 {[%emt 0:00:30]} Qxd6 {[%emt 0:00:30]} 31. h5 {
[%emt 0:00:30]} f5 {[%emt 0:00:30]} 32. gxf6 {[%emt 0:00:30]} Rxf6 {[%emt 0:00:
30]} 33. Qg2 {[%emt 0:00:30]} Rxf1+ {[%emt 0:00:30]} 34. Qxf1 Rf8 {[%emt 0:00:
30]} 35. Qh3 {[%emt 0:01:00]} g5 {[%emt 0:00:30]} 36. h6 {[%emt 0:00:30]} Qf4 {
[%emt 0:00:30]} 37. hxg7 {[%emt 0:00:30]} 1-0

[Event "FIN-ch Seniors 2019"]
[Site "Helsinki"]
[Date "2019.06.12"]
[Round "2.7"]
[White "Sorri, Kari Juhani"]
[Black "Kangas, Mauno"]
[Result "1/2-1/2"]
[ECO "B07"]
[WhiteElo "2184"]
[BlackElo "1831"]
[Annotator "NA"]
[PlyCount "94"]
[EventDate "2019.06.10"]
[EventType "swiss"]
[EventCountry "FIN"]
[SourceTitle "playchess.com"]
[Source "ChessBase"]
[SourceQuality "1"]
[TimeControl "40/5400+30:1800+30"]

1. e4 {[%emt 0:00:00]} d6 {[%emt 0:00:00]} 2. d4 {[%emt 0:00:03]} Nf6 {[%emt 0:
00:00]} 3. Nc3 {[%emt 0:00:18]} g6 {[%emt 0:00:18]} 4. Bg5 {[%emt 0:03:26]} Bg7
{[%emt 0:00:21]} 5. Qd2 {[%emt 0:04:00]} c6 {[%emt 0:01:14]} 6. Bh6 {[%emt 0:
01:44]} O-O {[%emt 0:00:11]} 7. Bxg7 {[%emt 0:00:16]} Kxg7 {[%emt 0:00:02]} 8.
h4 {[%emt 0:00:42]} h5 {[%emt 0:02:47]} 9. O-O-O {[%emt 0:04:39]} b5 {[%emt 0:
00:10]} 10. Bd3 {[%emt 0:00:45]} Be6 {[%emt 0:00:51]} 11. d5 {[%emt 0:06:42]}
Bd7 {[%emt 0:09:51]} 12. Nce2 {[%emt 0:07:44]} c5 {[%emt 0:01:03]} 13. Nf4 {
[%emt 0:02:46]} c4 {[%emt 0:00:32]} 14. Be2 {[%emt 0:00:14]} Qb6 {[%emt 0:06:
41]} 15. f3 {[%emt 0:06:43]} Na6 {[%emt 0:03:43]} 16. g4 {[%emt 0:00:46]} hxg4
{[%emt 0:02:22]} 17. h5 {[%emt 0:03:10]} Rh8 {[%emt 0:11:08]} 18. h6+ {[%emt 0:
01:48]} Kh7 {[%emt 0:01:09]} 19. fxg4 {[%emt 0:01:04]} Nc5 {[%emt 0:02:54]} 20.
Bf3 {[%emt 0:09:32]} Ncxe4 {[%emt 0:05:12]} 21. Bxe4 {[%emt 0:03:00]} Nxe4 {
[%emt 0:00:12]} 22. Qe1 {[%emt 0:01:55]} f5 {[%emt 0:04:01]} 23. Nf3 {[%emt 0:
01:42]} Rae8 {[%emt 0:05:32]} 24. Nxg6 {[%emt 0:06:52]} Rhg8 {[%emt 0:05:50]}
25. gxf5 {[%emt 0:05:03]} Bxf5 {[%emt 0:01:00]} 26. Nfh4 {[%emt 0:00:26]} Bxg6
{[%emt 0:10:33]} 27. Nxg6 {[%emt 0:01:32]} Nf2 {[%emt 0:00:55]} 28. Qe6 {
[%emt 0:01:22]} Rxg6 {[%emt 0:06:28]} 29. Qf7+ {[%emt 0:00:45]} Kh8 {[%emt 0:
00:12]} 30. Qxe8+ {[%emt 0:00:32]} Rg8 {[%emt 0:00:06]} 31. Qxe7 {[%emt 0:02:
12]} Nxd1 {[%emt 0:03:06]} 32. Rxd1 {[%emt 0:00:40]} Rg1 {[%emt 0:02:11]} 33.
Qf6+ {[%emt 0:00:57]} Kh7 {[%emt 0:00:01]} 34. Qf5+ {[%emt 0:00:13]} Kh8 {
[%emt 0:00:26]} 35. Qf3 {[%emt 0:05:22]} Rxd1+ {[%emt 0:01:46]} 36. Kxd1 {
[%emt 0:00:11]} Qd4+ {[%emt 0:00:12]} 37. Kc1 {[%emt 0:00:25]} b4 {[%emt 0:00:
28]} 38. Qh1 {[%emt 0:01:42]} Kh7 {[%emt 0:01:27]} 39. Kb1 {[%emt 0:00:20]} a5
{[%emt 0:00:29]} 40. a3 {[%emt 0:00:14]} bxa3 {[%emt 0:00:29]} 41. bxa3 {
[%emt 0:30:11]} c3 {[%emt 0:30:57]} 42. Ka1 {[%emt 0:00:52]} Qc5 {[%emt 0:01:
04]} 43. Qc1 {[%emt 0:00:45]} Qxd5 {[%emt 0:00:47]} 44. Qe1 {[%emt 0:00:50]}
Qc5 {[%emt 0:03:08]} 45. Ka2 {[%emt 0:00:34]} Qc4+ {[%emt 0:00:18]} 46. Ka1 {
[%emt 0:00:10]} Qc5 {[%emt 0:00:21]} 47. Ka2 {[%emt 0:00:11]} Qc4+ {[%emt 0:00:
19]} 1/2-1/2

[Event "FIN-ch Seniors 2019"]
[Site "Helsinki"]
[Date "2019.06.12"]
[Round "2.8"]
[White "Ruotanen, Helge"]
[Black "Saharinen, Petri"]
[Result "1-0"]
[ECO "A00"]
[WhiteElo "1920"]
[BlackElo "1719"]
[Annotator "NA"]
[PlyCount "81"]
[EventDate "2019.06.10"]
[EventType "swiss"]
[EventCountry "FIN"]
[SourceTitle "playchess.com"]
[Source "ChessBase"]
[SourceQuality "1"]
[TimeControl "40/5400+30:1800+30"]

1. g3 {[%emt 1:30:30]} d5 {[%emt 1:30:30]} 2. Bg2 {[%emt 0:00:30]} Nf6 {
[%emt 0:00:30]} 3. d3 {[%emt 0:00:30]} e5 {[%emt 0:00:30]} 4. Nc3 {[%emt 0:00:
30]} c6 {[%emt 0:00:30]} 5. Nf3 {[%emt 0:00:30]} Bd6 {[%emt 0:00:30]} 6. e4 {
[%emt 0:00:30]} d4 {[%emt 0:00:30]} 7. Ne2 {[%emt 0:00:30]} O-O {[%emt 0:00:30]
} 8. O-O {[%emt 0:00:30]} Bg4 {[%emt 0:00:30]} 9. h3 {[%emt 0:00:30]} Bxf3 {
[%emt 0:00:30]} 10. Bxf3 {[%emt 0:00:30]} Nbd7 {[%emt 0:00:30]} 11. g4 {
[%emt 0:00:30]} h6 {[%emt 0:00:30]} 12. Ng3 {[%emt 0:00:30]} Nh7 {[%emt 0:00:
30]} 13. Kg2 {[%emt 0:00:30]} Be7 {[%emt 0:00:30]} 14. Rh1 {[%emt 0:00:30]} Bg5
{[%emt 0:00:30]} 15. Nf5 {[%emt 0:00:30]} Nc5 {[%emt 0:00:30]} 16. h4 {[%emt 0:
00:30]} Bf4 {[%emt 0:00:30]} 17. Bxf4 {[%emt 0:00:30]} exf4 {[%emt 0:00:30]}
18. Qd2 {[%emt 0:00:30]} Ne6 {[%emt 0:00:30]} 19. Rag1 {[%emt 0:00:30]} f6 {
[%emt 0:00:30]} 20. Kf1 {[%emt 0:00:30]} Rf7 {[%emt 0:00:30]} 21. Rh2 {[%emt 0:
00:30]} Qf8 {[%emt 0:00:30]} 22. g5 {[%emt 0:00:30]} fxg5 {[%emt 0:00:30]} 23.
hxg5 {[%emt 0:00:30]} Nhxg5 {[%emt 0:00:30]} 24. Bg4 {[%emt 0:00:30]} Rf6 {
[%emt 0:00:30]} 25. f3 {[%emt 0:00:30]} Rd8 {[%emt 0:00:30]} 26. Qg2 {[%emt 0:
00:30]} Rd7 {[%emt 0:00:30]} 27. Nh4 {[%emt 0:00:30]} Qb4 {[%emt 0:00:30]} 28.
e5 {[%emt 0:00:30]} Rff7 {[%emt 0:00:30]} 29. Bxe6 {[%emt 0:00:30]} Nxe6 {
[%emt 0:00:30]} 30. Qg4 {[%emt 0:00:30]} Ng5 {[%emt 0:00:30]} 31. e6 {[%emt 0:
00:30]} Nxe6 {[%emt 0:00:30]} 32. Qxe6 {[%emt 0:00:30]} Rde7 {[%emt 0:00:30]}
33. Qg4 {[%emt 0:00:30]} Re1+ {[%emt 0:00:30]} 34. Kg2 {[%emt 0:00:30]} Rxg1+ {
[%emt 0:00:30]} 35. Kxg1 {[%emt 0:00:30]} Re7 {[%emt 0:00:30]} 36. Rg2 {
[%emt 0:00:30]} Re1+ {[%emt 0:00:30]} 37. Kh2 {[%emt 0:00:30]} Qe7 {[%emt 0:00:
30]} 38. Nf5 {[%emt 0:00:30]} Qg5 {[%emt 0:00:30]} 39. Qxg5 {[%emt 0:00:30]}
hxg5 {[%emt 0:00:30]} 40. Rxg5 {[%emt 0:00:30]} Re2+ {[%emt 0:00:30]} 41. Rg2 {
[%emt 0:30:30]} 1-0

[Event "FIN-ch Seniors 2019"]
[Site "Helsinki"]
[Date "2019.06.12"]
[Round "3.1"]
[White "Hurme, Harri"]
[Black "Peltola, Leo"]
[Result "1-0"]
[ECO "E32"]
[WhiteElo "2122"]
[BlackElo "1933"]
[Annotator "NA"]
[PlyCount "85"]
[EventDate "2019.06.10"]
[EventType "swiss"]
[EventCountry "FIN"]
[SourceTitle "playchess.com"]
[Source "ChessBase"]
[SourceQuality "1"]
[TimeControl "40/5400+30:1800+30"]

1. d4 {[%emt 0:00:59]} Nf6 {[%emt 0:00:00]} 2. c4 {[%emt 0:00:16]} e6 {[%emt 0:
00:00]} 3. Nc3 {[%emt 0:00:06]} Bb4 {[%emt 0:00:00]} 4. Qc2 {[%emt 0:00:08]}
O-O {[%emt 0:00:29]} 5. Nf3 {[%emt 0:00:08]} d6 {[%emt 0:01:39]} 6. e4 {
[%emt 0:01:25]} c5 {[%emt 0:08:03]} 7. dxc5 {[%emt 0:02:57]} Bxc5 {[%emt 0:00:
35]} 8. Be2 {[%emt 0:02:13]} Nc6 {[%emt 0:03:27]} 9. O-O {[%emt 0:00:55]} a6 {
[%emt 0:03:08]} 10. a3 {[%emt 0:03:59]} Nd4 {[%emt 0:03:10]} 11. Nxd4 {[%emt 0:
02:57]} Bxd4 {[%emt 0:00:13]} 12. Bd3 {[%emt 0:00:31]} h6 {[%emt 0:04:27]} 13.
Ne2 {[%emt 0:01:51]} Ba7 {[%emt 0:00:56]} 14. b4 {[%emt 0:02:05]} Bd7 {[%emt 0:
02:21]} 15. Bb2 {[%emt 0:02:13]} Qe7 {[%emt 0:03:06]} 16. Rad1 {[%emt 0:05:21]}
Rfd8 {[%emt 0:02:23]} 17. e5 {[%emt 0:01:53]} dxe5 {[%emt 0:03:41]} 18. Bxe5 {
[%emt 0:00:06]} Rac8 {[%emt 0:02:26]} 19. Qb2 {[%emt 0:03:59]} Ng4 {[%emt 0:09:
56]} 20. Bd6 {[%emt 0:06:13]} Qh4 {[%emt 0:03:56]} 21. Bg3 {[%emt 0:01:21]} Qf6
{[%emt 0:02:32]} 22. Qc2 {[%emt 0:07:36]} Bc6 {[%emt 0:03:40]} 23. c5 {[%emt 0:
03:53]} Bb8 {[%emt 0:05:06]} 24. h3 {[%emt 0:05:34]} Ne5 {[%emt 0:01:35]} 25.
Be4 {[%emt 0:01:52]} Bxe4 {[%emt 0:01:52]} 26. Qxe4 {[%emt 0:00:04]} Nc6 {
[%emt 0:00:30]} 27. Bxb8 {[%emt 0:05:59]} Rxb8 {[%emt 0:00:33]} 28. a4 {
[%emt 0:01:04]} Rd5 {[%emt 0:06:47]} 29. Rxd5 {[%emt 0:09:16]} exd5 {[%emt 0:
00:20]} 30. Qxd5 {[%emt 0:00:04]} Nxb4 {[%emt 0:00:41]} 31. Qe4 {[%emt 0:00:13]
} Nc6 {[%emt 0:02:52]} 32. Rb1 {[%emt 0:03:01]} Qg5 {[%emt 0:06:55]} 33. Qc4 {
[%emt 0:03:31]} Qe5 {[%emt 0:01:41]} 34. f4 {[%emt 0:00:48]} Qe3+ {[%emt 0:01:
13]} 35. Kh2 {[%emt 0:00:04]} Qd2 {[%emt 0:04:56]} 36. Qe4 {[%emt 0:02:23]} Kf8
{[%emt 0:02:02]} 37. Ng3 {[%emt 0:00:30]} Re8 {[%emt 0:02:30]} 38. Qh7 {
[%emt 0:00:10]} Ne7 {[%emt 0:03:18]} 39. Rxb7 {[%emt 0:02:46]} Qxf4 {[%emt 0:
00:19]} 40. Qe4 {[%emt 0:02:27]} Qc1 {[%emt 0:03:12]} 41. Qd4 {[%emt 0:35:22]}
Rc8 {[%emt 0:04:15]} 42. Rxe7 {[%emt 0:00:00]} Kxe7 {[%emt 0:00:11]} 43. Nf5+ {
[%emt 0:00:00]} 1-0

[Event "FIN-ch Seniors 2019"]
[Site "Helsinki"]
[Date "2019.06.12"]
[Round "3.2"]
[White "Aakio, Seppo"]
[Black "Koskinen, Veikko"]
[Result "1-0"]
[ECO "B01"]
[WhiteElo "2051"]
[BlackElo "1866"]
[Annotator "NA"]
[PlyCount "33"]
[EventDate "2019.06.10"]
[EventType "swiss"]
[EventCountry "FIN"]
[SourceTitle "playchess.com"]
[Source "ChessBase"]
[SourceQuality "1"]
[TimeControl "40/5400+30:1800+30"]

1. e4 {[%emt 0:00:00]} d5 {[%emt 0:20:05]} 2. exd5 {[%emt 0:00:00]} Qxd5 {
[%emt 0:00:05]} 3. Nc3 {[%emt 0:00:00]} Qd6 {[%emt 0:00:28]} 4. d4 {[%emt 0:00:
06]} c6 {[%emt 0:00:41]} 5. Nf3 {[%emt 0:00:10]} Nf6 {[%emt 0:00:15]} 6. g3 {
[%emt 0:00:02]} Bg4 {[%emt 0:03:04]} 7. Bg2 {[%emt 0:00:07]} e6 {[%emt 0:02:01]
} 8. O-O {[%emt 0:00:31]} Qc7 {[%emt 0:02:07]} 9. h3 {[%emt 0:07:14]} Bh5 {
[%emt 0:03:00]} 10. g4 {[%emt 0:00:35]} Bg6 {[%emt 0:00:28]} 11. Ne5 {[%emt 0:
00:09]} Nbd7 {[%emt 0:01:03]} 12. Qe2 {[%emt 0:00:52]} Bd6 {[%emt 0:04:13]} 13.
f4 {[%emt 0:00:27]} O-O {[%emt 0:04:39]} 14. h4 {[%emt 0:17:40]} h6 {[%emt 0:
13:09]} 15. Nxg6 {[%emt 0:01:10]} fxg6 {[%emt 0:00:12]} 16. g5 {[%emt 0:05:38]}
Nh5 {[%emt 0:02:17]} 17. Qxe6+ {[%emt 0:00:37]} 1-0

[Event "FIN-ch Seniors 2019"]
[Site "Helsinki"]
[Date "2019.06.12"]
[Round "3.3"]
[White "Visti, Heikki"]
[Black "Leukkunen, Raimo"]
[Result "1/2-1/2"]
[ECO "C55"]
[WhiteElo "2000"]
[BlackElo "1876"]
[Annotator "NA"]
[PlyCount "100"]
[EventDate "2019.06.10"]
[EventType "swiss"]
[EventCountry "FIN"]
[SourceTitle "playchess.com"]
[Source "ChessBase"]
[SourceQuality "1"]
[TimeControl "40/5400+30:1800+30"]

1. e4 {[%emt 0:00:00]} e5 {[%emt 0:00:00]} 2. Nf3 {[%emt 0:00:00]} Nc6 {
[%emt 0:00:00]} 3. Bc4 {[%emt 0:00:27]} Nf6 {[%emt 0:00:00]} 4. d3 {[%emt 0:01:
15]} Be7 {[%emt 0:00:12]} 5. O-O {[%emt 0:00:34]} O-O {[%emt 0:00:12]} 6. a3 {
[%emt 0:01:09]} d5 {[%emt 0:02:01]} 7. exd5 {[%emt 0:01:23]} Nxd5 {[%emt 0:00:
06]} 8. Re1 {[%emt 0:06:12]} Bg4 {[%emt 0:00:46]} 9. h3 {[%emt 0:00:55]} Bh5 {
[%emt 0:00:17]} 10. g4 {[%emt 0:04:47]} Bg6 {[%emt 0:00:07]} 11. Nxe5 {[%emt 0:
00:13]} Nxe5 {[%emt 0:00:28]} 12. Rxe5 {[%emt 0:00:27]} Nb6 {[%emt 0:00:24]}
13. Ba2 {[%emt 0:01:15]} Bd6 {[%emt 0:00:34]} 14. Re1 {[%emt 0:02:10]} Qh4 {
[%emt 0:00:44]} 15. Kg2 {[%emt 0:02:58]} Rae8 {[%emt 0:00:11]} 16. Nd2 {
[%emt 0:01:24]} Bc5 {[%emt 0:06:19]} 17. Re2 {[%emt 0:00:30]} h5 {[%emt 0:02:
46]} 18. Nf3 {[%emt 0:01:17]} Qf6 {[%emt 0:01:45]} 19. d4 {[%emt 0:07:04]} Rxe2
{[%emt 0:05:21]} 20. Qxe2 {[%emt 0:01:46]} Bxd4 {[%emt 0:00:15]} 21. c3 {
[%emt 0:01:49]} Bc5 {[%emt 0:03:36]} 22. b4 {[%emt 0:12:07]} hxg4 {[%emt 0:08:
50]} 23. hxg4 {[%emt 0:01:04]} Qe7 {[%emt 0:00:32]} 24. Qb5 {[%emt 0:03:32]}
Bd6 {[%emt 0:02:13]} 25. Qg5 {[%emt 0:03:59]} Be4 {[%emt 0:04:01]} 26. Qxe7 {
[%emt 0:02:21]} Bxe7 {[%emt 0:00:03]} 27. Bf4 {[%emt 0:00:27]} Bd6 {[%emt 0:03:
10]} 28. Bxd6 {[%emt 0:01:30]} cxd6 {[%emt 0:00:02]} 29. Kg3 {[%emt 0:00:27]}
Bd5 {[%emt 0:04:07]} 30. Nd4 {[%emt 0:03:45]} Rd8 {[%emt 0:04:59]} 31. Nf5 {
[%emt 0:02:15]} Bxa2 {[%emt 0:05:32]} 32. Rxa2 {[%emt 0:00:13]} g6 {[%emt 0:00:
35]} 33. Nd4 {[%emt 0:01:26]} a6 {[%emt 0:04:58]} 34. Re2 {[%emt 0:36:19]} Kf8
{[%emt 0:00:47]} 35. Nc2 {[%emt 0:03:38]} Rc8 {[%emt 0:00:54]} 36. Re3 {
[%emt 0:07:03]} Nd5 {[%emt 0:00:16]} 37. Rd3 {[%emt 0:00:09]} Rxc3 {[%emt 0:00:
15]} 38. Rxc3 {[%emt 0:00:11]} Nxc3 {[%emt 0:00:07]} 39. Kf4 {[%emt 0:00:31]}
f6 {[%emt 0:01:46]} 40. f3 {[%emt 0:01:07]} Kf7 {[%emt 0:40:49]} 41. Ke3 {
[%emt 0:30:17]} Ke6 {[%emt 0:31:13]} 42. Kd3 {[%emt 0:05:20]} Nb5 {[%emt 0:09:
46]} 43. f4 {[%emt 0:20:30]} Nc7 {[%emt 0:13:13]} 44. Kc4 {[%emt 0:04:05]} b6 {
[%emt 0:03:55]} 45. Nd4+ {[%emt 0:01:17]} Kd7 {[%emt 0:00:26]} 46. a4 {[%emt 0:
00:21]} Ne6 {[%emt 0:11:45]} 47. Ne2 {[%emt 0:01:44]} Nc7 {[%emt 0:00:00]} 48.
Nd4 {[%emt 0:00:00]} d5+ {[%emt 0:00:00]} 49. Kd3 {[%emt 0:00:00]} Kd6 {
[%emt 0:00:00]} 50. Ke3 {[%emt 0:00:00]} f5 1/2-1/2